bitfinex-derivatives/quotes_BTCF0:USTF0_20251111
["timestamp","ask_amount","ask_price","bid_price","bid_amount"]
[1762863004574,0.454432,105510.0,105500.0,0.25943292]
[1762863004763,0.35964,105510.0,105500.0,0.25943292]
[1762863005366,0.35964,105510.0,105500.0,0.34439461]
[1762863006070,0.454432,105510.0,105500.0,0.34439461]
[1762863006277,0.55990599,105510.0,105500.0,0.34439461]
[1762863007368,0.55982599,105510.0,105500.0,0.34439461]
[1762863007777,0.20026599,105510.0,105500.0,0.25943292]
[1762863007982,0.55982599,105510.0,105500.0,0.25943292]
[1762863008184,0.55982599,105510.0,105500.0,0.15395893]
[1762863009070,0.094792,105510.0,105500.0,0.25943292]
[1762863009274,0.454352,105510.0,105500.0,0.25943292]
[1762863009468,0.20026599,105510.0,105500.0,0.25943292]
[1762863009674,0.20026599,105510.0,105500.0,0.15395893]
[1762863010176,0.20026599,105510.0,105500.0,0.25943292]
[1762863010379,0.094792,105510.0,105500.0,0.25943292]
[1762863010567,0.20026599,105510.0,105500.0,0.25943292]
[1762863010765,0.20026599,105510.0,105500.0,0.34439461]
[1762863011975,0.094792,105510.0,105500.0,0.23892062]
[1762863012189,0.094792,105510.0,105500.0,0.25943292]
[1762863012190,0.20026599,105510.0,105500.0,0.25943292]
[1762863012875,0.20026599,105510.0,105500.0,0.16463202]
[1762863013078,0.20026599,105510.0,105500.0,0.15395893]
[1762863013281,0.20026599,105510.0,105500.0,0.25943292]
[1762863013472,0.20026599,105510.0,105500.0,0.15395893]
[1762863013675,0.20126599,105510.0,105500.0,0.25893293]
[1762863013973,0.095792,105510.0,105500.0,0.05865804]
[1762863014287,0.20126599,105510.0,105500.0,0.05865804]
[1762863014987,0.32673998,105510.0,105500.0,0.05865804]
[1762863015281,0.21126599,105510.0,105500.0,0.00219803]
[1762863015880,0.31673998,105510.0,105500.0,0.00219803]
[1762863016576,0.001,105500.0,105490.0,0.14412414]
[1762863016777,0.57166798,105500.0,105490.0,0.06136048]
[1762863017883,0.57166798,105500.0,105490.0,0.00434048]
[1762863018083,0.57166798,105500.0,105490.0,0.00214245]
[1762863018384,0.57166798,105500.0,105490.0,0.06275048]
[1762863019270,0.21194798,105500.0,105490.0,0.06275048]
[1762863019470,0.57166798,105500.0,105490.0,0.06275048]
[1762863019889,0.21194798,105500.0,105490.0,0.06275048]
[1762863020275,0.57166798,105500.0,105490.0,0.06275048]
[1762863020676,0.57166798,105500.0,105490.0,0.06075048]
[1762863020973,0.57166798,105500.0,105490.0,0.06175048]
[1762863021574,0.57166798,105500.0,105490.0,0.06275048]
[1762863022286,0.21194798,105500.0,105490.0,0.06275048]
[1762863022671,0.57162798,105500.0,105490.0,0.06275048]
[1762863022871,0.21194798,105500.0,105490.0,0.06275048]
[1762863023077,0.57162798,105500.0,105490.0,0.06275048]
[1762863023379,0.21194798,105500.0,105490.0,0.06275048]
[1762863023582,0.57162798,105500.0,105490.0,0.06275048]
[1762863023983,0.21194798,105500.0,105490.0,0.06275048]
[1762863024187,0.57158798,105500.0,105490.0,0.06275048]
[1762863024376,0.21194798,105500.0,105490.0,0.06275048]
[1762863024885,0.57158798,105500.0,105490.0,0.06275048]
[1762863026094,0.66638888,105500.0,105490.0,0.06275048]
[1762863027089,0.4554409,105500.0,105490.0,0.06275048]
[1762863027277,0.66638888,105500.0,105490.0,0.06275048]
[1762863028388,0.66638888,105500.0,105490.0,0.06075048]
[1762863028584,0.66638888,105500.0,105490.0,0.06275048]
[1762863028985,0.66634888,105500.0,105490.0,0.06275048]
[1762863029897,0.66634888,105500.0,105490.0,0.00434048]
[1762863030783,0.66634888,105500.0,105490.0,0.00234048]
[1762863030984,0.66634888,105500.0,105490.0,0.00334048]
[1762863031493,0.77182287,105500.0,105490.0,0.00114245]
[1762863031691,0.76634888,105500.0,105490.0,0.00114245]
[1762863032889,0.76634888,105500.0,105490.0,0.00014245]
[1762863033591,0.76634888,105500.0,105490.0,0.00114245]
[1762863035697,0.76630888,105500.0,105490.0,0.00334048]
[1762863036794,0.76630888,105500.0,105490.0,0.02631048]
[1762863038400,0.76630888,105500.0,105490.0,0.06280048]
[1762863044402,0.40674888,105500.0,105490.0,0.06280048]
[1762863044703,0.76634888,105500.0,105490.0,0.06280048]
[1762863045003,0.76634888,105500.0,105490.0,0.00334048]
[1762863045592,0.76634888,105500.0,105490.0,0.02631048]
[1762863045801,0.76634888,105500.0,105490.0,0.06280048]
[1762863046002,0.76634888,105500.0,105490.0,0.02631048]
[1762863046302,0.66634888,105500.0,105490.0,0.00334048]
[1762863046506,0.77182287,105500.0,105490.0,0.00334048]
[1762863046710,0.66634888,105500.0,105490.0,0.00334048]
[1762863046912,0.77182287,105500.0,105490.0,0.00114245]
[1762863047209,0.77182287,105500.0,105490.0,1e-08]
[1762863047210,0.82182287,105500.0,105490.0,1e-08]
[1762863048905,0.61092675,105500.0,105490.0,1e-08]
[1762863049407,0.61092675,105500.0,105490.0,0.05946001]
[1762863051406,0.25132675,105500.0,105490.0,0.05946001]
[1762863051606,0.61092675,105500.0,105490.0,0.06165804]
[1762863052598,0.25132675,105500.0,105490.0,0.06165804]
[1762863052798,0.61092675,105500.0,105490.0,0.06165804]
[1762863054312,0.25132675,105500.0,105490.0,0.06165804]
[1762863054505,0.61092675,105500.0,105490.0,0.06165804]
[1762863054904,0.25132675,105500.0,105490.0,0.06165804]
[1762863055414,0.61092675,105500.0,105490.0,0.06165804]
[1762863056322,0.61092675,105500.0,105490.0,0.06165803]
[1762863056523,0.61092675,105500.0,105490.0,0.06265803]
[1762863060431,0.61092675,105500.0,105490.0,0.06165804]
[1762863060619,0.61092675,105500.0,105490.0,0.001]
[1762863060820,0.5054009,105500.0,105490.0,0.06147803]
[1762863061119,0.61092675,105500.0,105490.0,0.06147803]
[1762863061625,0.5054009,105500.0,105490.0,0.06147803]
[1762863061824,0.25132675,105500.0,105490.0,0.06147803]
[1762863062016,0.61092675,105500.0,105490.0,0.06147803]
[1762863065931,0.25132675,105500.0,105490.0,0.06147803]
[1762863066226,0.61092675,105500.0,105490.0,0.00319803]
[1762863066533,0.61092675,105500.0,105490.0,0.02622803]
[1762863066929,0.61092675,105500.0,105490.0,0.04754803]
[1762863067431,0.61063437,105500.0,105490.0,0.06147803]
[1762863067632,0.25103437,105500.0,105490.0,0.04015803]
[1762863067824,0.61059437,105500.0,105490.0,0.04015803]
[1762863068232,0.61059437,105500.0,105490.0,0.06147803]
[1762863068733,0.50506852,105500.0,105490.0,0.06147803]
[1762863068928,0.61059437,105500.0,105490.0,0.06147803]
[1762863069933,0.61059437,105500.0,105490.0,0.04015803]
[1762863070831,0.61059437,105500.0,105490.0,0.06147803]
[1762863071034,0.25103437,105500.0,105490.0,0.06147803]
[1762863071234,0.61059437,105500.0,105490.0,0.06147803]
[1762863071434,0.56059437,105500.0,105490.0,0.06147803]
[1762863073038,0.56059437,105500.0,105490.0,0.001]
[1762863073233,0.56059437,105500.0,105470.0,0.06800497]
[1762863073234,0.0972389,105480.0,105470.0,0.06800497]
[1762863073535,0.0972479,105470.0,105460.0,0.02303]
[1762863073737,0.0972569,105460.0,105450.0,0.05828]
[1762863073938,0.56234275,105460.0,105450.0,0.06047803]
[1762863074139,0.4569327,105460.0,105450.0,0.07004092]
[1762863074330,0.56245855,105460.0,105450.0,0.07004092]
[1762863075931,0.56245855,105460.0,105450.0,0.07304092]
[1762863076128,0.56245855,105460.0,105450.0,0.07604092]
[1762863076540,0.56245855,105460.0,105450.0,0.07504092]
[1762863081843,0.20289855,105460.0,105450.0,0.07504092]
[1762863082035,0.56249855,105460.0,105450.0,0.07504092]
[1762863083634,0.20289855,105460.0,105450.0,0.07504092]
[1762863083943,0.56253855,105460.0,105450.0,0.07504092]
[1762863084143,0.20289855,105460.0,105450.0,0.07504092]
[1762863084442,0.56253855,105460.0,105450.0,0.07504092]
[1762863085337,0.20289855,105460.0,105450.0,0.07504092]
[1762863085535,0.56253855,105460.0,105450.0,0.07504092]
[1762863086239,0.56253855,105460.0,105450.0,0.16988682]
[1762863086435,0.56253855,105460.0,105450.0,0.07504092]
[1762863087039,0.20289855,105460.0,105450.0,0.07504092]
[1762863087433,0.56253855,105460.0,105450.0,0.07504092]
[1762863087936,0.20289855,105460.0,105450.0,0.07504092]
[1762863088142,0.56253855,105460.0,105450.0,0.07504092]
[1762863091646,0.20289855,105460.0,105450.0,0.07504092]
[1762863091841,0.56253855,105460.0,105450.0,0.07504092]
[1762863092349,0.4570127,105460.0,105450.0,0.16988682]
[1762863093144,0.4570127,105460.0,105450.0,0.27541267]
[1762863093548,0.4570127,105460.0,105450.0,0.16988682]
[1762863093848,0.4570127,105460.0,105450.0,0.07504092]
[1762863094748,0.0973727,105460.0,105450.0,0.07504092]
[1762863095150,0.56253855,105460.0,105450.0,0.07504092]
[1762863095937,0.56253855,105460.0,105450.0,0.16988682]
[1762863097345,0.4570127,105460.0,105450.0,0.16988682]
[1762863098254,0.4570127,105460.0,105450.0,0.25468445]
[1762863098454,0.4570127,105460.0,105450.0,0.15983855]
[1762863099654,0.56253855,105460.0,105450.0,0.15983855]
[1762863101256,0.4570127,105460.0,105450.0,0.15983855]
[1762863101456,0.56253855,105460.0,105450.0,0.15983855]
[1762863102652,0.56253855,105460.0,105450.0,0.25468445]
[1762863103955,0.56249855,105460.0,105450.0,0.25468445]
[1762863104350,0.56249855,105460.0,105450.0,0.07504092]
[1762863107651,0.56249855,105460.0,105450.0,0.16988682]
[1762863107958,0.4569727,105460.0,105450.0,0.16988682]
[1762863108159,0.56249855,105460.0,105450.0,0.16988682]
[1762863109651,0.56249855,105460.0,105450.0,0.07504092]
[1762863109652,0.20289855,105460.0,105450.0,0.07504092]
[1762863110161,0.20289855,105460.0,105450.0,0.16988682]
[1762863110353,0.56249855,105460.0,105450.0,0.16988682]
[1762863110857,0.56252498,105460.0,105450.0,0.16988682]
[1762863111856,0.56252498,105460.0,105450.0,0.25468445]
[1762863112363,0.56252498,105460.0,105450.0,0.16988682]
[1762863112962,0.56252498,105460.0,105450.0,0.25468445]
[1762863113356,0.56252498,105460.0,105450.0,0.16988682]
[1762863113762,0.20292498,105460.0,105450.0,0.16988682]
[1762863114063,0.56252498,105460.0,105450.0,0.16988682]
[1762863114562,0.0973727,105460.0,105450.0,0.16988682]
[1762863114753,0.4569727,105460.0,105450.0,0.36023673]
[1762863114954,0.56252498,105460.0,105450.0,0.36023673]
[1762863115361,0.56252498,105460.0,105450.0,0.25468445]
[1762863115557,0.56252498,105460.0,105450.0,0.15983855]
[1762863115761,0.66807726,105460.0,105450.0,0.15983855]
[1762863117360,0.66807726,105460.0,105450.0,0.25468445]
[1762863117861,0.66807726,105460.0,105450.0,0.15983855]
[1762863118161,0.56252498,105460.0,105450.0,0.15983855]
[1762863118358,0.4569727,105460.0,105450.0,0.15983855]
[1762863118550,0.66807726,105460.0,105450.0,0.15983855]
[1762863119563,0.66807726,105460.0,105450.0,0.25468445]
[1762863120163,0.66807726,105460.0,105450.0,0.15983855]
[1762863121265,0.66807726,105460.0,105450.0,0.09936052]
[1762863121464,0.66807726,105460.0,105450.0,0.01456289]
[1762863122560,0.66807726,105460.0,105450.0,0.07409092]
[1762863125865,0.30847726,105460.0,105450.0,0.07409092]
[1762863126062,0.10808808,105460.0,105450.0,0.35928673]
[1762863126258,0.56252498,105460.0,105450.0,0.25373445]
[1762863126457,0.4569727,105460.0,105450.0,0.35928673]
[1762863126661,0.56252498,105460.0,105450.0,0.35928673]
[1762863126861,0.56252498,105460.0,105450.0,0.25373445]
[1762863129374,0.4569727,105460.0,105450.0,0.25373445]
[1762863129670,0.56252498,105460.0,105450.0,0.16893682]
[1762863132670,0.20292498,105460.0,105450.0,0.2744891]
[1762863132874,0.56252498,105460.0,105450.0,0.2744891]
[1762863134282,0.56252498,105460.0,105450.0,0.16893682]
[1762863134777,0.4569727,105460.0,105450.0,0.16893682]
[1762863134984,0.56252498,105460.0,105450.0,0.16893682]
[1762863135175,0.0025358,105460.0,105450.0,0.2744891]
[1762863135371,0.0001158,105460.0,105450.0,0.2744891]
[1762863135575,0.0001158,105460.0,105450.0,0.35928673]
[1762863135776,0.0001158,105460.0,105450.0,0.2744891]
[1762863135976,0.0013258,105460.0,105450.0,0.2744891]
[1762863137280,0.0013258,105460.0,105450.0,0.39265783]
[1762863138177,0.0001158,105460.0,105450.0,0.39265783]
[1762863140886,0.0001158,105460.0,105450.0,0.62973783]
[1762863141088,0.0001158,105460.0,105450.0,0.39265783]
[1762863141289,0.0001158,105460.0,105450.0,0.5115691]
[1762863141582,0.0001158,105460.0,105450.0,0.2744891]
[1762863141987,0.0001158,105460.0,105450.0,0.5115691]
[1762863142379,0.00014245,105470.0,105460.0,0.1519769]
[1762863142581,0.00014245,105470.0,105460.0,0.45020455]
[1762863142780,0.00014245,105470.0,105460.0,1.04680455]
[1762863142982,0.00014245,105470.0,105460.0,0.70421227]
[1762863143289,0.00018676,105470.0,105460.0,0.70421227]
[1762863143983,0.00018676,105470.0,105460.0,0.70621227]
[1762863144588,0.00018676,105470.0,105460.0,0.70721227]
[1762863144790,0.00018676,105470.0,105460.0,0.81276455]
[1762863144994,0.56259788,105480.0,105470.0,0.1519679]
[1762863145186,0.56259788,105480.0,105470.0,0.25971821]
[1762863145187,0.36222,105480.0,105470.0,0.25971821]
[1762863145377,0.0961489,105480.0,105470.0,0.15416593]
[1762863145582,0.20303118,105480.0,105470.0,0.25971821]
[1762863145786,0.20303118,105480.0,105470.0,0.34464327]
[1762863146189,0.0974789,105480.0,105470.0,0.34464327]
[1762863146385,0.20303118,105480.0,105470.0,0.34464327]
[1762863146586,0.10821228,105480.0,105470.0,0.34464327]
[1762863146786,0.10821228,105480.0,105470.0,0.34564327]
[1762863147892,0.10821228,105480.0,105470.0,0.34764327]
[1762863148493,0.20303118,105480.0,105470.0,0.34764327]
[1762863149191,0.10821228,105480.0,105470.0,0.34764327]
[1762863151196,0.20303118,105480.0,105470.0,0.34764327]
[1762863152293,0.20303118,105480.0,105470.0,0.26271821]
[1762863152695,0.20303118,105480.0,105470.0,0.15716593]
[1762863152895,0.20303118,105480.0,105470.0,0.26271821]
[1762863153098,0.30858346,105480.0,105470.0,0.23434427]
[1762863153295,0.30858346,105480.0,105470.0,0.15716593]
[1762863155700,0.30858346,105480.0,105470.0,0.06233803]
[1762863157997,0.30858346,105480.0,105470.0,0.06133803]
[1762863158703,0.30858346,105480.0,105470.0,0.02580803]
[1762863159006,0.30858346,105480.0,105470.0,0.02480803]
[1762863159503,0.30858346,105480.0,105470.0,0.001]
[1762863159699,0.32858346,105480.0,105470.0,0.001]
[1762863160711,0.32858346,105480.0,105470.0,0.06033803]
[1762863164199,0.32858346,105480.0,105470.0,0.00319803]
[1762863166103,0.43413574,105480.0,105470.0,0.001]
[1762863168498,0.1174789,105480.0,105470.0,0.02261]
[1762863168700,0.32858346,105480.0,105470.0,0.04722803]
[1762863169594,0.32858346,105480.0,105470.0,0.06016803]
[1762863170909,0.32857018,105480.0,105470.0,0.06016803]
[1762863174908,0.32857018,105480.0,105470.0,0.05945803]
[1762863175408,0.68809018,105480.0,105470.0,0.05945803]
[1762863175708,0.58254454,105480.0,105470.0,0.05945803]
[1762863176810,0.32857018,105480.0,105470.0,0.05945803]
[1762863177202,0.68809018,105480.0,105470.0,0.05945803]
[1762863177612,0.32857018,105480.0,105470.0,0.05945803]
[1762863177813,0.68809018,105480.0,105470.0,0.05945803]
[1762863180807,0.4769989,105480.0,105470.0,0.05945803]
[1762863181008,0.68809018,105480.0,105470.0,0.05945803]
[1762863181208,0.58254454,105480.0,105470.0,0.05945803]
[1762863181820,0.68809018,105480.0,105470.0,0.05945803]
[1762863182511,0.68805018,105480.0,105470.0,0.05945803]
[1762863186324,0.32857018,105480.0,105470.0,0.05945803]
[1762863186522,0.68805018,105480.0,105470.0,0.05945803]
[1762863186717,0.68805018,105480.0,105470.0,0.00319803]
[1762863187422,0.68805018,105480.0,105470.0,0.04676803]
[1762863188121,0.68805018,105480.0,105470.0,0.001]
[1762863188725,0.68805018,105480.0,105470.0,0.058]
[1762863189025,0.68805018,105480.0,105470.0,0.03638]
[1762863190723,0.68805018,105480.0,105470.0,0.03857803]
[1762863191123,0.00266,105470.0,105460.0,0.00014245]
[1762863191422,0.00266,105450.0,105440.0,0.14160506]
[1762863191618,0.57542931,105450.0,105440.0,0.14233772]
[1762863191823,0.57542931,105450.0,105440.0,0.05741266]
[1762863193720,0.57542931,105450.0,105440.0,0.0670056]
[1762863194121,0.57542931,105450.0,105440.0,0.0740056]
[1762863195034,0.67027521,105450.0,105440.0,0.007]
[1762863196126,0.00266,105440.0,105430.0,0.00014245]
[1762863196329,0.21594931,105440.0,105430.0,1e-08]
[1762863196630,0.11040367,105440.0,105430.0,1e-08]
[1762863197128,0.21594931,105440.0,105430.0,1e-08]
[1762863197427,0.0948819,105410.0,105400.0,0.01343]
[1762863197626,0.56480557,105410.0,105400.0,0.06702551]
[1762863198222,0.56480557,105410.0,105400.0,0.05773266]
[1762863198419,0.00238,105380.0,105370.0,0.09835506]
[1762863198730,0.56464692,105380.0,105370.0,0.03611266]
[1762863199030,0.0972779,105370.0,105360.0,0.06673529]
[1762863199219,0.20502157,105370.0,105360.0,0.06746795]
[1762863199423,0.20502157,105370.0,105360.0,0.03611266]
[1762863199631,0.20502157,105370.0,105360.0,0.05833266]
[1762863199823,0.56542157,105370.0,105360.0,0.05833266]
[1762863200526,0.56542157,105370.0,105360.0,0.06233266]
[1762863201224,0.09947593,105370.0,105360.0,0.07197172]
[1762863201533,0.56546157,105370.0,105360.0,0.07197172]
[1762863201935,0.56546157,105370.0,105360.0,0.06997172]
[1762863202234,0.56546157,105370.0,105360.0,0.07197172]
[1762863203627,0.56550157,105370.0,105360.0,0.07197172]
[1762863204631,0.67104721,105370.0,105360.0,0.00473266]
[1762863204832,0.56550157,105370.0,105360.0,0.00473266]
[1762863205033,0.67104721,105370.0,105360.0,0.004]
[1762863206637,0.67104721,105370.0,105360.0,0.002]
[1762863206837,0.67104721,105370.0,105360.0,0.004]
[1762863207038,0.66868721,105370.0,105350.0,0.00049721]
[1762863207238,0.21109128,105360.0,105350.0,0.00049721]
[1762863207441,0.21328931,105360.0,105350.0,0.00049721]
[1762863207740,0.21328931,105360.0,105350.0,0.04522371]
[1762863208338,0.21328931,105360.0,105350.0,0.03587721]
[1762863208932,0.21328931,105360.0,105350.0,0.03687721]
[1762863209131,0.21328931,105360.0,105350.0,0.03887721]
[1762863209334,0.21328931,105360.0,105350.0,0.03787721]
[1762863209537,0.21328931,105360.0,105350.0,0.06109721]
[1762863209731,0.21328931,105360.0,105350.0,0.06914992]
[1762863209935,0.21328931,105360.0,105350.0,0.06182987]
[1762863214952,0.57384931,105360.0,105350.0,0.06182987]
[1762863216738,0.56323057,105360.0,105350.0,0.06182987]
[1762863216938,0.56319057,105360.0,105350.0,0.06182987]
[1762863217343,0.66873621,105360.0,105350.0,0.06182987]
[1762863217946,0.56319057,105360.0,105350.0,0.06182987]
[1762863222545,0.66873621,105360.0,105350.0,0.06182987]
[1762863224160,0.56319057,105360.0,105350.0,0.06182987]
[1762863224356,0.56315057,105360.0,105350.0,0.06182987]
[1762863224752,0.56311057,105360.0,105350.0,0.06182987]
[1762863225154,0.66861621,105360.0,105350.0,0.06182987]
[1762863225648,0.66861621,105360.0,105350.0,0.00422987]
[1762863226050,0.66861621,105360.0,105350.0,0.00349721]
[1762863226261,0.66861621,105360.0,105350.0,0.00249721]
[1762863226449,0.6937176,105360.0,105350.0,0.00249721]
[1762863226761,0.6937176,105360.0,105350.0,0.06082987]
[1762863227555,0.6937176,105360.0,105350.0,0.05982987]
[1762863228258,0.6936776,105360.0,105350.0,0.05982987]
[1762863229049,0.6936776,105360.0,105350.0,0.00149721]
[1762863230160,0.7536776,105360.0,105350.0,0.00149721]
[1762863230359,0.54258632,105360.0,105350.0,0.05915721]
[1762863230559,0.7536776,105360.0,105350.0,0.05915721]
[1762863231062,0.7546776,105360.0,105350.0,0.05815721]
[1762863232963,0.86099637,105360.0,105350.0,0.05815721]
[1762863233261,0.82680844,105360.0,105350.0,0.06035524]
[1762863234160,0.46644844,105360.0,105350.0,0.06035524]
[1762863234362,0.76676844,105360.0,105350.0,0.06035524]
[1762863234564,0.34351144,105360.0,105350.0,0.06035524]
[1762863234767,0.70379144,105360.0,105350.0,0.06035524]
[1762863237170,0.7036406,105360.0,105350.0,0.06035524]
[1762863239462,0.66945289,105360.0,105350.0,0.06035524]
[1762863240468,0.66945289,105360.0,105350.0,0.03903524]
[1762863240662,0.66945289,105360.0,105350.0,0.00269524]
[1762863240862,0.66945289,105360.0,105350.0,0.02442524]
[1762863241362,0.66945289,105360.0,105350.0,0.06147524]
[1762863241764,0.66945289,105360.0,105350.0,0.00049721]
[1762863243469,0.66937289,105360.0,105350.0,0.00049721]
[1762863244570,0.76429979,105360.0,105350.0,0.00049721]
[1762863244866,0.094945,105340.0,105330.0,0.04472202]
[1762863245169,0.7974656,105340.0,105330.0,0.06043803]
[1762863245363,0.76327431,105340.0,105330.0,0.06043803]
[1762863245574,0.76327431,105340.0,105320.0,0.05832]
[1762863245773,0.21171502,105330.0,105320.0,0.06061299]
[1762863246272,0.34217775,105330.0,105320.0,0.03753299]
[1762863246470,0.34217775,105330.0,105320.0,9.496e-05]
[1762863246773,0.35217775,105330.0,105310.0,0.05901738]
[1762863246974,0.46628335,105320.0,105310.0,0.06121541]
[1762863247264,0.36048,105320.0,105310.0,0.06121541]
[1762863247466,0.67789005,105320.0,105310.0,0.06121541]
[1762863248073,0.67789005,105320.0,105310.0,0.06421541]
[1762863248271,0.67789005,105320.0,105310.0,0.00543541]
[1762863248770,0.67789005,105320.0,105310.0,0.00323738]
[1762863249273,0.67789005,105320.0,105300.0,0.01397]
[1762863249274,0.67789005,105320.0,105300.0,0.0357]
[1762863249572,0.2116067,105310.0,105300.0,0.0357]
[1762863250066,0.2116067,105310.0,105300.0,0.00967497]
[1762863250371,0.31741005,105310.0,105290.0,0.05878]
[1762863250566,0.67793005,105300.0,105290.0,0.06097803]
[1762863250773,0.67803608,105300.0,105290.0,0.06097803]
[1762863251667,0.67803608,105300.0,105290.0,0.06297803]
[1762863251966,0.67803608,105300.0,105290.0,0.06597803]
[1762863253468,0.67803608,105300.0,105290.0,0.06397803]
[1762863253662,0.77301708,105300.0,105290.0,0.00319803]
[1762863254260,0.77301708,105300.0,105290.0,0.02492803]
[1762863254467,0.77301708,105300.0,105290.0,0.001]
[1762863255771,0.77301708,105300.0,105290.0,0.05978]
[1762863255969,0.77301708,105300.0,105290.0,0.001]
[1762863256766,0.77301708,105300.0,105280.0,0.03580706]
[1762863256971,0.10580335,105290.0,105280.0,0.00010706]
[1762863257168,0.20103283,105300.0,105290.0,0.05878]
[1762863257372,0.56163283,105300.0,105290.0,0.06097803]
[1762863258480,0.77323953,105300.0,105290.0,0.06097803]
[1762863259480,0.77323953,105300.0,105290.0,0.05934803]
[1762863260478,0.41263953,105300.0,105290.0,0.05934803]
[1762863260679,0.77323953,105300.0,105290.0,0.05934803]
[1762863261585,0.77319953,105300.0,105290.0,0.05934803]
[1762863263280,0.41263953,105300.0,105290.0,0.05934803]
[1762863263477,0.77319953,105300.0,105290.0,0.05934803]
[1762863263870,0.41263953,105300.0,105290.0,0.05934803]
[1762863264072,0.21185518,105300.0,105290.0,0.05934803]
[1762863264281,0.57241518,105300.0,105290.0,0.05934803]
[1762863269974,0.36080848,105300.0,105290.0,0.05934803]
[1762863270180,0.66739618,105300.0,105290.0,0.05934803]
[1762863273883,0.77319953,105300.0,105290.0,0.05934803]
[1762863274088,0.77319953,105300.0,105290.0,0.00319803]
[1762863274489,0.77319953,105300.0,105290.0,0.001]
[1762863276096,0.45578948,105300.0,105280.0,0.05625706]
[1762863276284,0.2116067,105290.0,105280.0,0.05845509]
[1762863278278,0.2116067,105290.0,105280.0,0.06145509]
[1762863278785,0.2116067,105290.0,105280.0,0.06045509]
[1762863279092,0.2116067,105290.0,105280.0,0.06145509]
[1762863280694,0.0950081,105270.0,105260.0,0.0575]
[1762863280994,0.77517618,105270.0,105260.0,0.01470266]
[1762863281296,0.66937283,105270.0,105260.0,0.01470266]
[1762863281485,0.66937283,105270.0,105260.0,0.03578266]
[1762863281686,0.77525562,105270.0,105250.0,0.05615]
[1762863281887,0.31741005,105260.0,105250.0,0.05615]
[1762863282081,0.31960808,105260.0,105250.0,0.05615]
[1762863282890,0.34425565,105260.0,105240.0,0.05615]
[1762863283092,0.5724067,105250.0,105240.0,0.05615]
[1762863283293,0.66963083,105250.0,105240.0,0.05615]
[1762863284889,0.66963083,105250.0,105240.0,0.05715]
[1762863285489,0.66963083,105250.0,105240.0,0.05815]
[1762863285697,0.00219803,105250.0,105240.0,0.1531852]
[1762863285888,0.46896138,105250.0,105240.0,0.05815]
[1762863286297,0.46896138,105250.0,105240.0,0.1531852]
[1762863287396,0.46896138,105250.0,105240.0,0.05815]
[1762863289498,0.56398748,105250.0,105240.0,0.05815]
[1762863290099,0.56398748,105250.0,105240.0,0.1531852]
[1762863293001,0.56416619,105250.0,105240.0,0.1531852]
[1762863297195,0.20320619,105250.0,105240.0,0.1531852]
[1762863297405,0.56400619,105250.0,105240.0,0.1531852]
[1762863300407,0.56400619,105250.0,105240.0,0.05815]
[1762863300611,0.56400619,105250.0,105240.0,0.1531852]
[1762863301104,0.56400619,105250.0,105240.0,0.05815]
[1762863301605,0.66998825,105250.0,105240.0,0.05815]
[1762863301905,0.56400619,105250.0,105240.0,0.05815]
[1762863310218,0.56400619,105250.0,105240.0,0.14347054]
[1762863310609,0.45802413,105250.0,105240.0,0.14347054]
[1762863310814,0.56400619,105250.0,105240.0,0.14347054]
[1762863313608,0.45802413,105250.0,105240.0,0.14347054]
[1762863313808,0.56400619,105250.0,105240.0,0.14347054]
[1762863314210,0.56400619,105250.0,105240.0,0.05815]
[1762863314905,0.20320619,105250.0,105240.0,0.1531852]
[1762863315114,0.56376619,105250.0,105240.0,0.1531852]
[1762863316924,0.20320619,105250.0,105240.0,0.1531852]
[1762863317113,0.56380619,105250.0,105240.0,0.1531852]
[1762863317312,0.56380619,105250.0,105240.0,0.05815]
[1762863317923,0.56380619,105250.0,105240.0,0.1531852]
[1762863318822,0.56380619,105250.0,105240.0,0.23850574]
[1762863319218,0.45782413,105250.0,105240.0,0.23850574]
[1762863319428,0.36275803,105250.0,105240.0,0.1531852]
[1762863319630,0.00219803,105250.0,105240.0,0.1531852]
[1762863319816,0.46874009,105250.0,105240.0,0.27135393]
[1762863321936,0.10818009,105250.0,105240.0,0.27135393]
[1762863322730,0.00219803,105250.0,105240.0,0.27135393]
[1762863323035,0.10818009,105250.0,105240.0,0.27135393]
[1762863323439,0.00219803,105250.0,105240.0,0.27135393]
[1762863324037,0.10818009,105250.0,105240.0,0.27135393]
[1762863326836,0.00014245,105260.0,105250.0,0.1528361]
[1762863327438,0.00014245,105260.0,105250.0,0.27100483]
[1762863327834,0.20333964,105260.0,105250.0,0.27100483]
[1762863328941,0.20333964,105260.0,105250.0,0.23820334]
[1762863333746,0.10832254,105260.0,105250.0,0.23820334]
[1762863335638,0.20333964,105260.0,105250.0,0.23820334]
[1762863336837,0.10832254,105260.0,105250.0,0.23820334]
[1762863337040,0.20333964,105260.0,105250.0,0.23820334]
[1762863337440,0.10832254,105260.0,105250.0,0.23820334]
[1762863338149,1e-08,105260.0,105250.0,0.5817054]
[1762863338348,7.944e-05,105270.0,105260.0,0.1528271]
[1762863338546,7.944e-05,105270.0,105260.0,0.23813341]
[1762863338747,7.944e-05,105270.0,105260.0,0.59849341]
[1762863338949,7.944e-05,105270.0,105260.0,0.63135583]
[1762863339849,7.944e-05,105270.0,105260.0,0.27099583]
[1762863340148,0.1060615,105270.0,105260.0,0.27099583]
[1762863340840,7.944e-05,105270.0,105260.0,0.27099583]
[1762863341349,7.944e-05,105270.0,105260.0,0.50847583]
[1762863341943,7.944e-05,105270.0,105260.0,0.27099583]
[1762863342546,7.944e-05,105270.0,105260.0,0.35627029]
[1762863342941,7.944e-05,105270.0,105260.0,0.23810156]
[1762863345543,0.20112971,105280.0,105270.0,0.1528181]
[1762863345744,0.20332774,105280.0,105270.0,0.23809256]
[1762863345947,0.20332774,105280.0,105270.0,0.14308446]
[1762863346545,0.20340212,105280.0,105270.0,0.14308446]
[1762863346951,0.20340212,105280.0,105270.0,0.23809256]
[1762863347152,0.20340212,105280.0,105270.0,0.1528181]
[1762863347451,0.20340212,105280.0,105270.0,0.23809256]
[1762863347653,0.20340212,105280.0,105270.0,0.1528181]
[1762863347853,0.20340212,105280.0,105270.0,0.23809256]
[1762863349249,0.20340212,105280.0,105270.0,0.14308446]
[1762863349646,0.20340212,105280.0,105270.0,0.05781]
[1762863351750,0.20340212,105280.0,105270.0,0.14308446]
[1762863351951,0.20340212,105280.0,105270.0,0.23809256]
[1762863352157,0.20340212,105280.0,105270.0,0.14308446]
[1762863352854,0.30927428,105280.0,105270.0,0.14308446]
[1762863354656,0.30927428,105280.0,105270.0,0.23809256]
[1762863355370,0.30927428,105280.0,105270.0,0.14308446]
[1762863356358,0.0950081,105270.0,105260.0,0.17786873]
[1762863356561,0.66938035,105270.0,105260.0,0.14497446]
[1762863357667,0.66938035,105270.0,105260.0,0.14697446]
[1762863360464,0.66938035,105270.0,105260.0,0.10083446]
[1762863360666,0.66938035,105270.0,105260.0,0.002]
[1762863361364,1.17530746,105270.0,105260.0,0.002]
[1762863361563,1.17530746,105270.0,105250.0,0.00014245]
[1762863361564,1.24530746,105270.0,105250.0,0.00014245]
[1762863361862,0.10592711,105260.0,105250.0,0.00014245]